fUST/lending_fUST_20250723
["ID","MTS","AMOUNT","RATE_DAILY","PERIOD"]
[374281416,1753264251709,-811.33,0.00020821,2]
[374281417,1753264251719,-460.0,0.00020821,2]
[374281418,1753264251728,-527.66724148,0.00020821,2]
[374281419,1753264251737,-460.0,0.00020821,2]
[374281420,1753264251746,-460.0,0.00020821,2]
[374281421,1753264251755,-460.0,0.00020821,2]
[374281422,1753264251766,-466.68,0.00020821,2]
[374281423,1753264251776,-460.0,0.00020821,2]
[374281424,1753264251785,-460.0,0.00020821,2]
[374281425,1753264251794,-673.57,0.00020821,2]
[374281426,1753264251803,-645.5,0.00020821,2]
[374281427,1753264251812,-460.0,0.00020821,2]
[374281428,1753264251821,-460.0,0.00020821,2]
[374281429,1753264251830,-1119.43,0.00020821,2]
[374281430,1753264251839,-460.0,0.00020821,2]
[374281431,1753264251849,-463.37390298,0.00020821,2]
[374281432,1753264251858,-460.0,0.00020821,2]
[374281433,1753264251868,-460.0,0.00020821,2]
[374281434,1753264251877,-972.23,0.00020821,2]
[374281435,1753264251887,-460.0,0.00020821,2]
[374281436,1753264251896,-1027.29,0.00020821,2]
[374281437,1753264251905,-460.0,0.00020821,2]
[374281438,1753264251915,-460.0,0.00020821,2]
[374281439,1753264251924,-460.0,0.00020821,2]
[374281440,1753264251933,-1364.19,0.00020821,2]
[374281441,1753264251942,-460.0,0.00020821,2]
[374281442,1753264251952,-460.0,0.00020821,2]
[374281443,1753264251961,-460.0,0.00020821,2]
[374281444,1753264251974,-460.0,0.00020821,2]
[374281445,1753264251984,-496.18,0.00020821,2]
[374281446,1753264251993,-460.0,0.00020821,2]
[374281447,1753264252002,-460.0,0.00020821,2]
[374281448,1753264252014,-460.0,0.00020821,2]
[374281449,1753264252024,-1562.8,0.00020821,2]
[374281450,1753264252033,-706.84,0.00020821,2]
[374281451,1753264252044,-2146.92,0.00020821,2]
[374281452,1753264252054,-460.0,0.00020821,2]
[374281453,1753264252063,-500.0,0.00020822,2]
[374281454,1753264252073,-420.0,0.00020898,2]
[374281455,1753264252082,-460.0,0.00020994,2]
[374281456,1753264252091,-460.0,0.00020994,2]
[374281457,1753264252101,-460.0,0.00020994,2]
[374281458,1753264252111,-460.0,0.00020994,2]
[374281459,1753264252120,-460.0,0.00020994,2]
[374281460,1753264252131,-460.0,0.00020994,2]
[374281461,1753264252140,-151.0,0.00021,3]
[374281462,1753264252150,-500.0,0.00021068,2]
[374281463,1753264252159,-1500.0,0.00021068,2]
[374281464,1753264252169,-1500.0,0.00021068,2]
[374281465,1753264252179,-411.94009619,0.00021068,2]
[374281466,1753264252190,-1517.57490607,0.00021068,2]
[374281467,1753264252204,-1500.0,0.00021068,2]
[374281468,1753264252214,-160.25264938,0.00021092,2]
[374281469,1753264252223,-500.0,0.00021092,2]
[374281470,1753264252234,-460.0,0.00021093,2]
[374281471,1753264252246,-460.0,0.00021093,2]
[374281472,1753264252257,-460.0,0.00021093,2]
[374281473,1753264252269,-460.0,0.00021093,2]
[374281474,1753264252278,-460.0,0.00021093,2]
[374281475,1753264252288,-460.0,0.00021093,2]
[374281476,1753264252298,-460.0,0.00021093,2]
[374281477,1753264252308,-460.0,0.00021093,2]
[374281478,1753264252317,-460.0,0.00021093,2]
[374281479,1753264252327,-460.0,0.00021093,2]
[374281480,1753264252337,-460.0,0.00021093,2]
[374281481,1753264252347,-460.0,0.00021093,2]
[374281482,1753264252356,-460.0,0.00021093,2]
[374281483,1753264252366,-460.0,0.00021093,2]
[374281484,1753264252376,-460.0,0.00021093,2]
[374281485,1753264252385,-460.0,0.00021093,2]
[374281486,1753264252395,-460.0,0.00021093,2]
[374281487,1753264252405,-460.0,0.00021093,2]
[374281488,1753264252414,-460.0,0.00021093,2]
[374281489,1753264252424,-460.0,0.00021094,2]
[374281490,1753264252433,-3211.89,0.00021094,2]
[374281491,1753264252443,-460.0,0.00021094,2]
[374281492,1753264252453,-726.23,0.00021094,2]
[374281493,1753264252462,-515.15,0.00021095,2]
[374281494,1753264252472,-460.0,0.00021095,2]
[374281495,1753264252482,-811.33,0.00021095,2]
[374281496,1753264252492,-460.0,0.00021095,2]
[374281497,1753264252501,-460.0,0.00021095,2]
[374281498,1753264252512,-460.0,0.00021095,2]
[374281499,1753264252522,-645.5,0.00021095,2]
[374281500,1753264252531,-545.89,0.00021095,2]
[374281501,1753264252541,-460.0,0.00021095,2]
[374281502,1753264252551,-1119.43,0.00021095,2]
[374281503,1753264252561,-460.0,0.00021095,2]
[374281504,1753264252570,-460.0,0.00021095,2]
[374281505,1753264252580,-460.0,0.00021095,2]
[374281506,1753264252589,-972.23,0.00021095,2]
[374281507,1753264252598,-1027.29,0.00021095,2]
[374281508,1753264252608,-460.0,0.00021095,2]
[374281509,1753264252617,-460.0,0.00021095,2]
[374281510,1753264252628,-1364.19,0.00021095,2]
[374281511,1753264252637,-460.0,0.00021095,2]
[374281512,1753264252646,-460.0,0.00021095,2]
[374281513,1753264252656,-460.0,0.00021095,2]
[374281514,1753264252666,-460.0,0.00021095,2]
[374281515,1753264252675,-496.18,0.00021095,2]
[374281516,1753264252685,-460.0,0.00021095,2]
[374281517,1753264252694,-460.0,0.00021095,2]
[374281518,1753264252704,-460.0,0.00021095,2]
[374281519,1753264252714,-1562.8,0.00021095,2]
[374281520,1753264252724,-706.84,0.00021095,2]
[374281521,1753264252733,-460.0,0.00021095,2]
[374281522,1753264252742,-2146.92,0.00021095,2]
[374281523,1753264252752,-500.0,0.00021096,2]
[374281524,1753264252762,-151.0,0.000211,4]
[374281525,1753264252772,-500.0,0.00021107,2]
[374281526,1753264252781,-500.0,0.00021107,2]
[374281527,1753264252791,-172.93782909,0.00021107,2]
[374281528,1753264252801,-500.0,0.00021107,2]
[374281529,1753264252810,-500.0,0.00021107,2]
[374281530,1753264252820,-500.0,0.00021107,2]
[374281531,1753264252829,-523.23050163,0.00021107,2]
[374281532,1753264252839,-500.0,0.00021107,2]
[374281533,1753264252848,-500.0,0.00021107,2]
[374281534,1753264252858,-522.37844134,0.00021107,2]
[374281535,1753264252867,-500.0,0.00021107,2]
[374281536,1753264252877,-500.0,0.00021107,2]
[374281537,1753264252886,-500.0,0.00021107,2]
[374281538,1753264252895,-618.87769149,0.00021107,2]
[374281539,1753264252905,-500.0,0.00021107,2]
[374281540,1753264252914,-260.39383891,0.00021167,2]
[374281541,1753264252924,-500.0,0.00021167,2]
[374281542,1753264252933,-500.0,0.00021167,2]
[374281543,1753264252943,-160.28662095,0.00021167,2]
[374281544,1753264252953,-500.0,0.00021167,2]
[374281545,1753264252963,-500.0,0.00021167,2]
[374281546,1753264252975,-165.8063407,0.00021167,2]
[374281547,1753264252985,-158.2357039,0.00021167,2]
[374281548,1753264252997,-500.0,0.00021168,2]
[374281549,1753264253018,-158.18811696,0.00021168,2]
[374281550,1753264253028,-500.0,0.00021168,2]
[374281551,1753264253037,-500.0,0.00021168,2]
[374281552,1753264253048,-500.0,0.00021168,2]
[374281553,1753264253058,-500.44982833,0.00021168,2]
[374281554,1753264253067,-500.87256702,0.00021168,2]
[374281555,1753264253076,-261.434561,0.00021168,2]
[374281556,1753264253086,-500.0,0.00021168,2]
[374281557,1753264253095,-500.0,0.00021168,2]
[374281558,1753264253104,-502.00125028,0.00021168,2]
[374281559,1753264253114,-500.0,0.00021168,2]
[374281560,1753264253123,-500.0,0.00021168,2]
[374281561,1753264253132,-187.95442895,0.00021168,2]
[374281562,1753264253143,-500.0,0.00021168,2]
[374281563,1753264253153,-501.55687852,0.00021168,2]
[374281564,1753264253163,-500.0,0.00021168,2]
[374281565,1753264253172,-500.0,0.00021168,2]
[374281566,1753264253181,-500.0,0.00021168,2]
[374281567,1753264253190,-500.0,0.00021168,2]
[374281568,1753264253200,-519.50839953,0.00021168,2]
[374281569,1753264253209,-500.0,0.00021168,2]
[374281570,1753264253218,-500.0,0.00021168,2]
[374281571,1753264253227,-500.0,0.00021168,2]
[374281572,1753264253237,-500.0,0.00021168,2]
[374281573,1753264253247,-500.0,0.00021168,2]
[374281574,1753264253256,-500.0,0.00021168,2]
[374281575,1753264253268,-500.0,0.00021168,2]
[374281576,1753264253278,-500.0,0.00021168,2]
[374281577,1753264253287,-500.0,0.00021168,2]
[374281578,1753264253297,-500.0,0.00021168,2]
[374281579,1753264253307,-500.0,0.00021168,2]
[374281580,1753264253317,-500.0,0.00021168,2]
[374281581,1753264253326,-153.86029415,0.00021168,2]
[374281582,1753264253336,-443.54778627,0.00021168,2]
[374281583,1753264253345,-1500.0,0.00021168,2]
[374281584,1753264253355,-1500.0,0.00021168,2]
[374281585,1753264253364,-1500.0,0.00021168,2]
[374281586,1753264253374,-360.0,0.00021194,2]
[374281587,1753264253383,-151.0,0.000212,4]
[374281588,1753264253393,-460.0,0.00021268,2]
[374281589,1753264253402,-460.0,0.00021268,2]
[374281590,1753264253412,-460.0,0.00021268,2]
[374281591,1753264253422,-188.30857997,0.00021268,2]
[374281592,1753264253432,-460.0,0.00021268,2]
[374281593,1753264253441,-274.0,0.00021288,4]
[374281594,1753264253451,-460.0,0.00021367,2]
[374281595,1753264253462,-414.62036185,0.00021367,2]
[374281596,1753264253471,-460.0,0.00021367,2]
[374281597,1753264253481,-460.0,0.00021367,2]
[374281598,1753264253490,-460.0,0.00021367,2]
[374281599,1753264253500,-534.22,0.00021367,2]
[374281600,1753264253511,-460.0,0.00021367,2]
[374281601,1753264253521,-460.0,0.00021367,2]
[374281602,1753264253530,-460.0,0.00021367,2]
[374281603,1753264253539,-175.19404414,0.00021367,2]
[374281604,1753264253549,-460.0,0.00021367,2]
[374281605,1753264253559,-460.0,0.00021367,2]
[374281606,1753264253568,-460.0,0.00021367,2]
[374281607,1753264253578,-460.0,0.00021367,2]
[374281608,1753264253588,-460.0,0.00021367,2]
[374281609,1753264253598,-460.0,0.00021367,2]
[374281610,1753264253607,-460.0,0.00021367,2]
[374281611,1753264253617,-460.0,0.00021367,2]
[374281612,1753264253627,-460.0,0.00021368,2]
[374281613,1753264253636,-3211.89,0.00021368,2]
[374281614,1753264253646,-460.0,0.00021368,2]
[374281615,1753264253656,-726.23,0.00021368,2]
[374281616,1753264253666,-515.15,0.00021369,2]
[374281617,1753264253675,-475.16,0.00021369,2]
[374281618,1753264253685,-811.33,0.00021369,2]
[374281619,1753264253695,-460.0,0.00021369,2]
[374281620,1753264253705,-460.0,0.00021369,2]
[374281621,1753264253714,-645.5,0.00021369,2]
[374281622,1753264253723,-460.0,0.00021369,2]
[374281623,1753264253733,-1119.43,0.00021369,2]
[374281624,1753264253743,-460.0,0.00021369,2]
[374281625,1753264253753,-460.0,0.00021369,2]
[374281626,1753264253764,-460.0,0.00021369,2]
[374281627,1753264253773,-972.23,0.00021369,2]
[374281628,1753264253783,-1027.29,0.00021369,2]
[374281629,1753264253793,-460.0,0.00021369,2]
[374281630,1753264253803,-460.0,0.00021369,2]
[374281631,1753264253812,-1364.19,0.00021369,2]
[374281632,1753264253823,-460.0,0.00021369,2]
[374281633,1753264253832,-460.0,0.00021369,2]
[374281634,1753264253842,-463.18909427,0.00021369,2]
[374281635,1753264253851,-496.18,0.00021369,2]
[374281636,1753264253861,-460.0,0.00021369,2]
[374281637,1753264253871,-460.0,0.00021369,2]
[374281638,1753264253880,-1562.8,0.00021369,2]
[374281639,1753264253890,-706.84,0.00021369,2]
[374281640,1753264253899,-460.0,0.00021369,2]
[374281641,1753264253909,-2146.92,0.00021369,2]
[374281642,1753264253919,-500.0,0.0002137,2]
[374281643,1753264253928,-151.0,0.000215,3]
[374281644,1753264253937,-151.0,0.000215,4]
[374281645,1753264253947,-460.0,0.00021542,2]
[374281646,1753264253956,-241.96,0.00021542,2]
[374281647,1753264253970,-460.0,0.00021542,2]
[374281648,1753264253980,-460.0,0.00021542,2]
[374281649,1753264253989,-1500.0,0.00021616,2]
[374281650,1753264253999,-1000.0,0.00021616,2]
[374281651,1753264254010,-151.0,0.0002164,2]
[374281652,1753264254020,-151.0,0.0002164,2]
[374281653,1753264254029,-414.531555,0.0002164,2]
[374281654,1753264254039,-414.531555,0.0002164,2]
[374281655,1753264254050,-1000.0,0.0002164,2]
[374281656,1753264254061,-460.0,0.00021641,2]
[374281657,1753264254076,-460.0,0.00021641,2]
[374281658,1753264254085,-460.0,0.00021641,2]
[374281659,1753264254095,-460.0,0.00021641,2]
[374281660,1753264254106,-250.44,0.00021641,2]
[374281661,1753264254117,-460.0,0.00021641,2]
[374281662,1753264254128,-460.0,0.00021641,2]
[374281663,1753264254138,-460.0,0.00021641,2]
[374281664,1753264254147,-460.0,0.00021641,2]
[374281665,1753264254158,-460.0,0.00021641,2]
[374281666,1753264254168,-460.0,0.00021641,2]
[374281667,1753264254178,-460.0,0.00021641,2]
[374281668,1753264254189,-460.0,0.00021641,2]
[374281669,1753264254200,-460.0,0.00021642,2]
[374281670,1753264254315,-3211.89,0.00021642,2]
[374281671,1753264254325,-460.0,0.00021642,2]
[374281672,1753264254335,-726.23,0.00021642,2]
[374281673,1753264254344,-515.15,0.00021643,2]
[374281674,1753264254356,-811.33,0.00021643,2]
[374281675,1753264254366,-460.0,0.00021643,2]
[374281676,1753264254377,-460.0,0.00021643,2]
[374281677,1753264254386,-645.5,0.00021643,2]
[374281678,1753264254395,-460.0,0.00021643,2]
[374281679,1753264254405,-1119.43,0.00021643,2]
[374281680,1753264254415,-460.0,0.00021643,2]
[374281681,1753264254424,-460.0,0.00021643,2]
[374281682,1753264254435,-460.0,0.00021643,2]
[374281683,1753264254445,-972.23,0.00021643,2]
[374281684,1753264254455,-1027.29,0.00021643,2]
[374281685,1753264254464,-460.0,0.00021643,2]
[374281686,1753264254474,-460.0,0.00021643,2]
[374281687,1753264254484,-1364.19,0.00021643,2]
[374281688,1753264254493,-263.52,0.00021643,2]
[374281689,1753264254503,-460.0,0.00021643,2]
[374281690,1753264254513,-496.18,0.00021643,2]
[374281691,1753264254523,-460.0,0.00021643,2]
[374281692,1753264254532,-460.0,0.00021643,2]
[374281693,1753264254542,-1562.8,0.00021643,2]
[374281694,1753264254551,-706.84,0.00021643,2]
[374281695,1753264254561,-460.0,0.00021643,2]
[374281696,1753264254570,-2146.92,0.00021643,2]
[374281697,1753264254580,-500.0,0.00021644,2]
[374281698,1753264254589,-1000.0,0.00021655,2]
[374281699,1753264254599,-1001.00505703,0.00021655,2]
[374281700,1753264254608,-1000.0,0.00021655,2]
[374281701,1753264254618,-501.72112936,0.00021655,2]
[374281702,1753264254627,-1000.0,0.00021655,2]
[374281703,1753264254636,-500.0,0.00021655,2]
[374281704,1753264254645,-1000.0,0.00021655,2]
[374281705,1753264254655,-1000.0,0.00021655,2]
[374281706,1753264254664,-1000.89543393,0.00021655,2]
[374281707,1753264254675,-1000.0,0.00021655,2]
[374281708,1753264254684,-1000.0,0.00021655,2]
[374281709,1753264254694,-151.0,0.000217,3]
[374281710,1753264254704,-1000.0,0.00021715,2]
[374281711,1753264254714,-500.0,0.00021715,2]
[374281712,1753264254723,-500.0,0.00021715,2]
[374281713,1753264254733,-799.77258459,0.00021716,2]
[374281714,1753264254743,-1000.0,0.00021716,2]
[374281715,1753264254753,-552.78730248,0.00021716,2]
[374281716,1753264254764,-500.0,0.00021716,2]
[374281717,1753264254774,-1002.478894,0.00021716,2]
[374281718,1753264254784,-386.60069791,0.00021716,2]
[374281719,1753264254794,-1000.0,0.00021716,2]
[374281720,1753264254804,-500.0,0.00021716,2]
[374281721,1753264254813,-502.47036255,0.00021716,2]
[374281722,1753264254823,-1000.0,0.00021716,2]
[374281723,1753264254832,-426.4078042,0.00021716,2]
[374281724,1753264254842,-1061.90127604,0.00021716,2]
[374281725,1753264254851,-1000.0,0.00021716,2]
[374281726,1753264254860,-1000.0,0.00021716,2]
[374281727,1753264254870,-500.0,0.00021716,2]
[374281728,1753264254879,-1000.0,0.00021716,2]
[374281729,1753264254889,-500.0,0.00021716,2]
[374281730,1753264254898,-1574.48081171,0.00021716,2]
[374281731,1753264254908,-1500.0,0.00021716,2]
[374281732,1753264254917,-574.19270689,0.00021742,2]
[374281733,1753264254927,-1323.38839145,0.00021763,2]
[374281734,1753264254936,-410.1,0.00021816,2]
[374281735,1753264254946,-460.0,0.00021816,2]
[374281736,1753264254955,-460.0,0.00021816,2]
[374281737,1753264254967,-254.78848728,0.00021915,2]
[374281738,1753264254977,-460.0,0.00021915,2]
[374281739,1753264254986,-434.52221657,0.00021915,2]
[374281740,1753264254996,-460.0,0.00021915,2]
[374281741,1753264255005,-460.0,0.00021915,2]
[374281742,1753264255015,-460.0,0.00021915,2]
[374281743,1753264255025,-460.0,0.00021915,2]
[374281744,1753264255034,-460.0,0.00021915,2]
[374281745,1753264255045,-460.0,0.00021915,2]
[374281746,1753264255055,-460.0,0.00021916,2]
[374281747,1753264255065,-3211.89,0.00021916,2]
[374281748,1753264255075,-460.0,0.00021916,2]
[374281749,1753264255085,-726.23,0.00021916,2]
[374281750,1753264255094,-515.15,0.00021917,2]
[374281751,1753264255104,-811.33,0.00021917,2]
[374281752,1753264255113,-373.48076235,0.00021917,2]
[374281753,1753264255122,-460.0,0.00021917,2]
[374281754,1753264255132,-645.5,0.00021917,2]
[374281755,1753264255141,-460.0,0.00021917,2]
[374281756,1753264255150,-1119.43,0.00021917,2]
[374281757,1753264255159,-460.0,0.00021917,2]
[374281758,1753264255170,-460.0,0.00021917,2]
[374281759,1753264255179,-972.23,0.00021917,2]
[374281760,1753264255188,-1027.29,0.00021917,2]
[374281761,1753264255198,-439.98003465,0.00021917,2]
[374281762,1753264255207,-460.0,0.00021917,2]
[374281763,1753264255217,-1364.19,0.00021917,2]
[374281764,1753264255227,-460.0,0.00021917,2]
[374281765,1753264255237,-496.18,0.00021917,2]
[374281766,1753264255246,-460.0,0.00021917,2]
[374281767,1753264255256,-460.0,0.00021917,2]
[374281768,1753264255265,-1562.8,0.00021917,2]
[374281769,1753264255275,-706.84,0.00021917,2]
[374281770,1753264255284,-578.6,0.00021917,2]
[374281771,1753264255294,-2146.92,0.00021917,2]
[374281772,1753264255303,-529.4,0.00021918,2]
[374281773,1753264255313,-150.46368495,0.00021918,2]
[374281774,1753264255323,-167.866829,0.0002199,2]
[374281775,1753264255332,-167.866829,0.0002199,2]
[374281776,1753264255342,-11149.69,0.00022,7]
[374281777,1753264255352,-2858.62,0.00022,7]
[374281778,1753264255361,-151.0,0.00022,10]
[374281779,1753264255371,-160.0,0.00022,7]
[374281780,1753264255380,-12622.36869388,0.00022,7]
[374281781,1753264255390,-2301.47582481,0.00022076,2]
[374281782,1753264255399,-460.0,0.0002209,2]
[374281783,1753264255410,-223.0315306,0.0002216,2]
[374281784,1753264255419,-460.0,0.00022189,2]
[374281785,1753264255429,-460.0,0.00022189,2]
[374281786,1753264255438,-460.0,0.00022189,2]
[374281787,1753264255447,-460.0,0.00022189,2]
[374281788,1753264255457,-460.0,0.00022189,2]
[374281789,1753264255466,-460.0,0.00022189,2]
[374281790,1753264255477,-460.0,0.00022189,2]
[374281791,1753264255488,-460.0,0.0002219,2]
[374281792,1753264255499,-3211.89,0.0002219,2]
[374281793,1753264255510,-460.0,0.0002219,2]
[374281794,1753264255519,-726.23,0.0002219,2]
[374281795,1753264255528,-151.0,0.00022191,7]
[374281796,1753264255538,-515.15,0.00022191,2]
[374281797,1753264255548,-811.33,0.00022191,2]
[374281798,1753264255557,-460.0,0.00022191,2]
[374281799,1753264255567,-645.5,0.00022191,2]
[374281800,1753264255576,-460.0,0.00022191,2]
[374281801,1753264255585,-1119.43,0.00022191,2]
[374281802,1753264255595,-512.68316805,0.00022191,2]
[374281803,1753264255605,-353.33,0.00022191,2]
[374281804,1753264255614,-972.23,0.00022191,2]
[374281805,1753264255624,-1027.29,0.00022191,2]
[374281806,1753264255634,-460.0,0.00022191,2]
[374281807,1753264255644,-1364.19,0.00022191,2]
[374281808,1753264255654,-468.73,0.00022191,2]
[374281809,1753264255663,-460.0,0.00022191,2]
[374281810,1753264255673,-496.18,0.00022191,2]
[374281811,1753264255683,-460.0,0.00022191,2]
[374281812,1753264255692,-1562.8,0.00022191,2]
[374281813,1753264255701,-706.84,0.00022191,2]
[374281814,1753264255711,-2146.92,0.00022191,2]
[374281815,1753264255721,-502.49980511,0.00022203,2]
[374281816,1753264255730,-500.0,0.00022203,2]
[374281817,1753264255740,-629.31904846,0.00022203,2]
[374281818,1753264255749,-1500.0,0.00022203,2]
[374281819,1753264255760,-1500.0,0.00022203,2]
[374281820,1753264255769,-1003.73116406,0.00022203,2]
[374281821,1753264255779,-500.98894013,0.00022203,2]
[374281822,1753264255789,-308.34046914,0.00022263,2]
[374281823,1753264255799,-500.0,0.00022264,2]
[374281824,1753264255808,-500.0,0.00022264,2]
[374281825,1753264255817,-500.0,0.00022264,2]
[374281826,1753264255827,-167.866829,0.00022415,6]
[374281827,1753264255836,-500.0,0.00022445,2]
[374281828,1753264255846,-163.98697154,0.00022445,2]
[374281829,1753264255855,-503.20157742,0.00022445,2]
[374281830,1753264255864,-500.0,0.0002245,2]
[374281831,1753264255873,-500.0,0.0002245,2]
[374281832,1753264255882,-550.14382085,0.0002245,2]
[374281833,1753264255891,-314.27054803,0.0002245,2]
[374281834,1753264255900,-500.59710166,0.0002245,2]
[374281835,1753264255910,-160.27129854,0.0002245,2]
[374281836,1753264255919,-183.16125584,0.0002246,2]
[374281837,1753264255928,-500.0,0.0002246,2]
[374281838,1753264255937,-310.74342888,0.0002246,2]
[374281839,1753264255947,-460.0,0.00022463,2]
[374281840,1753264255956,-460.0,0.00022463,2]
[374281841,1753264255970,-496.2402934,0.00022463,2]
[374281842,1753264255979,-573.91245876,0.00022463,2]
[374281843,1753264255988,-460.0,0.00022464,2]
[374281844,1753264255997,-3211.89,0.00022464,2]
[374281845,1753264256007,-460.0,0.00022464,2]
[374281846,1753264256017,-726.23,0.00022464,2]
[374281847,1753264256027,-515.15,0.00022465,2]
[374281848,1753264256037,-811.33,0.00022465,2]
[374281849,1753264256048,-460.0,0.00022465,2]
[374281850,1753264256058,-645.5,0.00022465,2]
[374281851,1753264256069,-460.0,0.00022465,2]
[374281852,1753264256079,-1119.43,0.00022465,2]
[374281853,1753264256090,-972.23,0.00022465,2]
[374281854,1753264256100,-1869.02,0.00022465,2]
[374281855,1753264256110,-1027.29,0.00022465,2]
[374281856,1753264256120,-460.0,0.00022465,2]
[374281857,1753264256131,-1364.19,0.00022465,2]
[374281858,1753264256141,-460.0,0.00022465,2]
[374281859,1753264256150,-496.18,0.00022465,2]
[374281860,1753264256159,-460.0,0.00022465,2]
[374281861,1753264256170,-1562.8,0.00022465,2]
[374281862,1753264256180,-706.84,0.00022465,2]
[374281863,1753264256189,-500.0,0.00022493,2]
[374281864,1753264256199,-500.85435132,0.00022493,2]
[374281865,1753264256209,-500.0,0.00022493,2]
[374281866,1753264256219,-636.93253847,0.00022493,2]
[374281867,1753264256229,-501.04320037,0.00022493,2]
[374281868,1753264256239,-151.0,0.000225,9]
[374281869,1753264256250,-151.0,0.0002259,7]
[374281870,1753264256259,-151.0,0.0002259,7]
[374281871,1753264256271,-414.531555,0.0002259,7]
[374281872,1753264256281,-414.531555,0.0002259,7]
[374281873,1753264256291,-150.0,0.0002259,2]
[374281874,1753264256302,-17679.06371995,0.00022636,3]
[374281875,1753264256311,-151.0,0.00022736,7]
[374281876,1753264256321,-151.0,0.00022736,7]
[374281877,1753264256331,-443.012938,0.00022736,7]
[374281878,1753264256340,-443.012938,0.00022736,7]
[374281879,1753264256350,-460.0,0.00022737,2]
[374281880,1753264256360,-471.12,0.00022737,2]
[374281881,1753264256369,-181.46,0.00022738,2]
[374281882,1753264256379,-3211.89,0.00022738,2]
[374281883,1753264256390,-505.68409061,0.00022738,2]
[374281884,1753264256399,-726.23,0.00022738,2]
[374281885,1753264256409,-515.15,0.00022739,2]
[374281886,1753264256419,-811.33,0.00022739,2]
[374281887,1753264256428,-460.0,0.00022739,2]
[374281888,1753264256438,-645.5,0.00022739,2]
[374281889,1753264256447,-460.0,0.00022739,2]
[374281890,1753264256457,-1119.43,0.00022739,2]
[374281891,1753264256466,-972.23,0.00022739,2]
[374281892,1753264256476,-1027.29,0.00022739,2]
[374281893,1753264256486,-460.0,0.00022739,2]
[374281894,1753264256496,-1364.19,0.00022739,2]
[374281895,1753264256505,-230.69565268,0.00022739,2]
[374281896,1753264256515,-496.18,0.00022739,2]
[374281897,1753264256524,-500.12,0.00022739,2]
[374281898,1753264256534,-1562.8,0.00022739,2]
[374281899,1753264256544,-706.84,0.00022739,2]
[374281900,1753264256555,-500.0,0.00022751,2]
[374281901,1753264256564,-1000.0,0.00022751,2]
[374281902,1753264256575,-703.88,0.00022766,7]
[374281903,1753264256584,-167.866829,0.00022775,2]
[374281904,1753264256593,-167.866829,0.00022775,2]
[374281905,1753264256700,-507.0,0.00022775,2]
[374281906,1753264256711,-1323.38839145,0.00022832,2]
[374281907,1753264256721,-703.88,0.00022866,6]
[374281908,1753264256731,-703.88,0.00022966,2]
[374281909,1753264256741,-840.06856235,0.00023,3]
[374281910,1753264256751,-231.11583447,0.00023,3]
[374281911,1753264256762,-160.0,0.00023,3]
[374281912,1753264256772,-151.0,0.00023,6]
[374281913,1753264256782,-2568.0,0.00023,2]
[374281914,1753264256792,-2568.0,0.00023,2]
[374281915,1753264256803,-2568.0,0.00023,2]